bitfinex/quotes_ETHUSD_20250803
["timestamp","ask_amount","ask_price","bid_price","bid_amount"]
[1754237299444,45.3534,3479.2,3479.1,0.002]
[1754237303370,40.9624,3479.2,3479.1,0.002]
[1754237303578,45.3524,3479.2,3479.1,0.002]
[1754237304392,40.9624,3479.2,3479.1,0.002]
[1754237304556,44.436,3479.2,3479.1,0.002]
[1754237306334,44.924,3479.2,3479.1,0.002]
[1754237306838,37.046,3479.2,3479.1,0.002]
[1754237307018,4.39,3479.5,3479.1,16.1976663]
[1754237307223,4.391,3479.6,3479.2,1.61996663]
[1754237307524,4.391,3479.6,3479.2,1.62196663]
[1754237308004,4.391,3479.6,3479.2,1.61996663]
[1754237308210,0.488,3479.5,3479.1,0.002]
[1754237308408,4.39,3479.4,3479.1,0.002]
[1754237311831,0.001,3479.6,3479.1,0.002]
[1754237312033,4.389,3479.5,3479.2,16.1956663]
[1754237312237,4.39,3479.6,3479.2,16.1956663]
[1754237312439,4.39,3479.6,3479.2,17.90206793]
[1754237312639,4.389,3479.5,3479.2,17.90206793]
[1754237313054,0.001,3479.6,3479.2,17.90206793]
[1754237313348,4.389,3479.5,3479.2,1.70640163]
[1754237313530,4.389,3479.5,3479.1,0.002]
[1754237314919,4.8583,3479.5,3479.1,0.002]
[1754237315325,4.389,3479.4,3479.1,0.002]
[1754237316248,0.4703,3479.6,3479.1,0.002]
[1754237316428,4.389,3479.4,3479.1,0.002]
[1754237318357,4.8583,3479.4,3479.1,1.70840163]
[1754237318724,0.4693,3479.4,3479.1,1.70840163]
[1754237319352,0.9376,3479.4,3479.1,1.70840163]
[1754237319546,0.4693,3479.3,3479.2,0.86435]
[1754237319948,0.9376,3479.3,3479.2,0.86435]
[1754237321763,0.9376,3479.3,3479.1,0.002]
[1754237322852,0.4693,3479.3,3479.1,0.002]
[1754237323658,0.4683,3479.3,3479.1,0.002]
[1754237323859,0.4693,3479.2,3479.1,0.002]
[1754237324461,0.9376,3479.2,3479.1,0.002]
[1754237327681,0.96632671,3479.2,3479.1,0.002]
[1754237327842,1.50175938,3479.2,3479.1,0.002]
[1754237328175,1.47303267,3479.2,3479.1,0.002]
[1754237328744,35.86003267,3479.2,3479.1,0.002]
[1754237331094,38.86003267,3479.2,3479.1,0.002]
[1754237338189,38.97531767,3479.2,3479.1,0.002]
[1754237341980,41.63431767,3479.2,3479.1,0.002]
[1754237342185,46.02131767,3479.2,3479.1,0.002]
[1754237343593,45.08371767,3479.2,3479.1,0.002]
[1754237343890,45.42643267,3479.2,3479.1,0.002]
[1754237344270,45.88803267,3479.2,3479.1,0.002]
[1754237347099,44.96843267,3479.2,3479.1,0.002]
[1754237347297,45.88803267,3479.2,3479.1,0.002]
[1754237347868,41.50103267,3479.2,3479.1,0.002]
[1754237348193,45.88803267,3479.2,3479.1,0.002]
[1754237351165,45.88703267,3479.2,3479.1,0.002]
[1754237354684,46.00231967,3479.2,3479.1,0.002]
[1754237357908,45.88703267,3479.2,3479.1,0.002]
[1754237358203,44.96743267,3479.2,3479.1,0.002]
[1754237358410,45.88703267,3479.2,3479.1,0.002]
[1754237363794,44.96643267,3479.2,3479.1,0.002]
[1754237364819,45.42443267,3479.2,3479.1,0.002]
[1754237365681,45.88603267,3479.2,3479.1,0.002]
[1754237368785,41.03943267,3479.2,3479.1,0.002]
[1754237368979,44.96643267,3479.2,3479.1,0.002]
[1754237370293,44.431,3479.2,3479.1,0.002]
[1754237370591,40.046,3479.2,3479.1,0.002]
[1754237370815,11.43,3479.2,3479.1,0.002]
[1754237371032,11.43,3479.2,3479.1,0.004]
[1754237371827,41.43,3479.2,3479.1,0.002]
[1754237372191,11.43,3479.2,3479.1,0.002]
[1754237372428,11.43,3479.2,3479.1,0.004]
[1754237373631,11.43,3479.2,3479.1,0.002]
[1754237376892,42.3567,3479.2,3479.1,0.002]
[1754237377231,48.22494707,3479.2,3479.1,0.002]
[1754237397662,48.77494707,3479.2,3479.1,0.002]
[1754237398047,48.89024507,3479.2,3479.1,0.002]
[1754237398747,65.08391137,3479.2,3479.1,0.002]
[1754237400073,65.37201137,3479.2,3479.1,0.002]
[1754237401548,49.17834507,3479.2,3479.1,0.002]
[1754237402659,3.8381,3478.8,3478.7,0.002]
[1754237402860,38.24882671,3478.8,3478.7,0.002]
[1754237403062,55.3471663,3478.8,3478.7,0.002]
[1754237405181,62.3931663,3478.8,3478.7,0.002]
[1754237405392,64.1211663,3478.8,3478.7,0.002]
[1754237405546,65.41042008,3478.8,3478.7,0.002]
[1754237406749,47.48875378,3478.8,3478.7,0.002]
[1754237407749,63.68242008,3478.8,3478.7,0.002]
[1754237407964,63.79774108,3478.8,3478.7,0.002]
[1754237408154,65.52674108,3478.8,3478.7,0.002]
[1754237409993,61.14474108,3478.8,3478.7,0.002]
[1754237410295,65.52774108,3478.8,3478.7,0.002]
[1754237412404,59.41574108,3478.8,3478.7,0.002]
[1754237412577,47.05407478,3478.8,3478.6,0.002]
[1754237412776,40.82897378,3478.7,3478.6,0.002]
[1754237413098,41.73364707,3478.7,3478.6,0.002]
[1754237413313,41.84896607,3478.7,3478.6,0.002]
[1754237413513,40.36556607,3478.7,3478.6,0.002]
[1754237413977,40.91556607,3478.7,3478.6,0.002]
[1754237414587,35.98356607,3478.7,3478.6,0.002]
[1754237414777,40.25024707,3478.7,3478.6,0.002]
[1754237414982,35.86824707,3478.7,3478.6,0.002]
[1754237415185,34.382,3478.7,3478.6,0.004]
[1754237415499,37.382,3478.7,3478.6,0.004]
[1754237415699,37.382,3478.7,3478.6,0.002]
[1754237416602,38.3938,3478.7,3478.6,0.002]
[1754237416906,41.73364707,3478.7,3478.6,0.002]
[1754237417403,44.39764707,3478.7,3478.6,0.002]
[1754237417575,48.77964707,3478.7,3478.6,0.002]
[1754237418192,43.46424707,3478.7,3478.6,0.002]
[1754237418394,47.84624707,3478.7,3478.6,0.002]
[1754237423879,48.30804707,3478.7,3478.6,0.002]
[1754237424499,47.29524707,3478.7,3478.6,0.002]
[1754237424703,44.427,3478.7,3478.6,0.002]
[1754237424988,44.427,3478.7,3478.6,0.004]
[1754237424989,41.427,3478.7,3478.6,0.004]
[1754237425331,44.427,3478.7,3478.6,0.004]
[1754237425740,40.046,3478.7,3478.6,0.004]
[1754237425937,37.046,3478.7,3478.6,0.004]
[1754237426222,4.381,3478.9,3478.6,0.004]
[1754237426401,4.381,3478.9,3478.6,0.002]
[1754237426718,4.381,3478.9,3478.7,0.002]
[1754237427786,4.381,3479.0,3478.7,0.002]
[1754237429502,0.001,3479.1,3478.7,16.1956663]
[1754237429688,0.001,3479.1,3478.8,1.62196663]
[1754237430228,0.001,3479.1,3478.8,1.61996663]
[1754237430429,0.001,3479.1,3478.9,0.002]
[1754237435128,0.001,3479.1,3479.0,0.002]
[1754237435731,0.001,3479.1,3478.8,1.61996663]
[1754237435938,0.001,3479.1,3478.9,1.78156329]
[1754237437552,0.001,3479.1,3478.9,1.78356329]
[1754237439536,0.001,3479.1,3478.9,1.78156329]
[1754237443166,0.001,3479.1,3478.9,1.810308]
[1754237443366,0.001,3479.1,3479.0,0.002]
[1754237443544,0.001,3479.1,3479.0,1.79972296]
[1754237445089,0.001,3479.5,3479.1,0.55]
[1754237445370,0.001,3479.5,3479.4,0.55]
[1754237445576,0.001,3479.5,3479.4,0.57874058]
[1754237445930,0.001,3479.5,3479.4,0.58074058]
[1754237446171,0.001,3479.5,3479.4,2.71038127]
[1754237446667,0.001,3480.0,3479.4,2.71038127]
[1754237446969,0.001,3480.0,3479.8,16.8876663]
[1754237447357,0.001,3480.0,3479.8,16.8896663]
[1754237451963,0.001,3480.0,3479.8,16.8876663]
[1754237452167,0.001,3480.0,3479.8,17.31257523]
[1754237454360,0.001,3480.0,3479.8,17.31457523]
[1754237456744,0.001,3480.0,3479.8,17.31257523]
[1754237457170,0.001,3480.0,3479.8,17.31457523]
[1754237457773,0.001,3480.0,3479.8,17.31257523]
[1754237458674,0.001,3480.0,3479.8,17.31457523]
[1754237460444,0.001,3480.0,3479.8,17.31257523]
[1754237461748,0.9439,3479.9,3479.8,17.16857523]
[1754237462047,0.9439,3479.9,3479.4,2.12964069]
[1754237462249,0.9429,3479.8,3479.5,4.375]
[1754237462448,0.4844,3479.8,3479.6,4.40373893]
[1754237463266,0.4585,3479.8,3479.6,4.40373893]
[1754237463477,0.4844,3479.7,3479.6,4.40373893]
[1754237464064,0.9429,3479.7,3479.6,4.40373893]
[1754237464244,0.9429,3479.7,3479.6,6.46347945]
[1754237464446,0.9429,3479.7,3479.6,6.43474052]
[1754237465756,0.4844,3479.7,3479.6,6.43474052]
[1754237466880,0.9429,3479.7,3479.6,6.43474052]
[1754237473906,0.9429,3479.7,3479.6,6.43674052]
[1754237474622,0.9429,3479.7,3479.6,9.43674052]
[1754237476714,0.9429,3479.7,3479.6,6.43674052]
[1754237477308,0.001,3479.9,3479.7,3.55]
[1754237477484,0.001,3479.9,3479.8,10.24626934]
[1754237477689,0.001,3479.9,3479.8,10.36153206]
[1754237477888,0.001,3479.9,3479.8,7.36153206]
[1754237481088,0.4595,3480.3,3479.9,3.55]
[1754237481089,0.001,3480.3,3479.9,3.55]
[1754237481320,0.001,3480.3,3480.2,3.694]
[1754237481514,0.4595,3480.3,3480.2,8.09673398]
[1754237481685,0.001,3480.3,3480.2,8.068]
[1754237482327,0.4854,3480.3,3480.2,8.068]
[1754237482482,0.4854,3480.3,3480.2,3.694]
[1754237482683,0.9439,3480.3,3480.2,5.04238731]
[1754237482883,0.9439,3480.3,3480.2,3.0]
[1754237483186,0.9439,3480.3,3480.1,4.374]
[1754237483492,0.9429,3480.2,3480.1,4.374]
[1754237484015,0.9429,3480.2,3479.5,0.55]
[1754237484221,0.001,3480.3,3479.7,4.374]
[1754237484379,0.9429,3480.1,3479.7,4.374]
[1754237484579,0.9429,3480.0,3479.7,4.374]
[1754237484879,0.9429,3479.9,3479.7,4.374]
[1754237485085,0.001,3480.3,3479.7,4.374]
[1754237485086,0.9429,3479.8,3479.7,4.374]
[1754237486420,0.9429,3479.8,3479.7,21.23290106]
[1754237486586,0.9429,3479.8,3479.7,21.20416296]
[1754237486786,0.4585,3480.1,3479.7,21.20416296]
[1754237487023,0.4844,3479.8,3479.7,21.20416296]
[1754237487382,0.001,3480.3,3479.8,0.55]
[1754237487586,0.4854,3480.3,3480.2,16.1936663]
[1754237487790,0.4854,3480.3,3480.2,20.5676663]
[1754237488324,0.9439,3480.3,3480.2,20.5676663]
[1754237491294,0.001,3480.3,3480.2,21.1176663]
[1754237491622,0.001,3480.3,3480.2,23.10663293]
[1754237492932,0.001,3480.3,3480.2,26.10663293]
[1754237493223,0.001,3480.3,3480.2,26.10863293]
[1754237493403,0.001,3480.3,3480.2,26.10663293]
[1754237495622,0.4892,3480.3,3480.2,26.32233119]
[1754237496521,0.4892,3480.3,3480.2,21.94833119]
[1754237496726,0.9385,3480.3,3480.2,26.32133119]
[1754237497422,0.4892,3480.3,3480.2,26.32133119]
[1754237497624,0.001,3480.3,3480.2,26.32133119]
[1754237503230,0.9385,3480.3,3480.2,2.20466489]
[1754237503433,0.9385,3480.3,3479.7,0.144]
[1754237503612,0.9375,3480.2,3479.9,0.55]
[1754237503927,0.9375,3480.1,3480.0,4.372]
[1754237506937,0.9375,3480.1,3479.7,0.144]
[1754237507148,0.001,3480.3,3479.8,4.372]
[1754237507349,0.9375,3480.0,3479.8,4.372]
[1754237507555,0.9375,3479.9,3479.8,4.372]
[1754237510422,0.9375,3479.9,3479.6,0.002]
[1754237510731,0.9375,3479.8,3479.7,4.372]
[1754237512554,0.9375,3479.8,3479.6,0.002]
[1754237512758,30.0,3480.2,3479.6,4.374]
[1754237512972,0.9375,3479.7,3479.6,4.374]
[1754237525773,0.9375,3479.7,3479.6,0.002]
[1754237526479,30.9375,3479.7,3479.6,0.002]
[1754237528673,0.9375,3479.7,3479.6,0.002]
[1754237532891,0.9375,3479.7,3478.4,0.21956106]
[1754237532892,30.0,3479.6,3478.4,0.21956106]
[1754237533190,30.0,3479.4,3478.6,4.372]
[1754237533396,40.0,3479.2,3478.6,4.372]
[1754237533591,30.0,3479.6,3478.6,4.372]
[1754237533790,0.9338,3479.1,3478.6,4.372]
[1754237533954,0.9338,3479.0,3478.6,4.372]
[1754237534154,0.9338,3478.9,3478.6,4.372]
[1754237534360,0.9338,3478.8,3478.6,4.372]
[1754237534559,40.0,3479.6,3478.6,4.372]
[1754237534777,0.9338,3478.7,3478.6,4.372]
[1754237537979,0.4665,3478.7,3478.6,4.372]
[1754237538168,30.0,3479.5,3478.6,4.372]
[1754237538368,0.4665,3479.1,3478.8,16.1936663]
[1754237538571,0.4665,3479.0,3478.8,16.1936663]
[1754237538771,0.4665,3478.9,3478.8,16.1936663]
[1754237539382,0.9338,3478.9,3478.8,16.1936663]
[1754237540406,0.9338,3478.9,3478.6,4.374]
[1754237540700,0.9338,3478.8,3478.6,4.374]
[1754237540881,0.9338,3478.7,3478.6,0.002]
[1754237546349,0.4665,3479.2,3478.6,0.03074719]
[1754237546520,0.001,3480.3,3479.2,16.1936663]
[1754237546814,0.4665,3479.8,3479.3,4.372]
[1754237546977,0.4673,3479.7,3479.3,4.372]
[1754237547179,0.9338,3479.6,3479.3,4.372]
[1754237547385,0.4665,3479.6,3479.3,4.372]
[1754237547590,0.4665,3479.6,3479.3,6.42856663]
[1754237548123,0.4675,3480.1,3479.4,0.02874058]
[1754237548411,0.4675,3480.1,3479.8,16.1936663]
[1754237548774,0.436,3480.0,3479.8,16.1936663]
[1754237548980,0.4722,3479.9,3479.8,16.1936663]
[1754237549593,0.9082,3479.9,3479.8,16.1936663]
[1754237549884,0.9082,3479.9,3479.7,4.372]
[1754237550104,0.436,3479.8,3479.7,4.372]
[1754237550313,0.9082,3479.8,3479.7,4.372]
[1754237555106,0.9082,3479.8,3479.5,4.371]
[1754237555307,0.9082,3479.7,3479.1,0.144]
[1754237555527,30.0,3479.5,3479.1,4.371]
[1754237555729,0.9082,3479.4,3479.0,4.371]
[1754237555949,2.86824707,3479.5,3478.6,3.002]
[1754237555950,30.0,3479.3,3478.9,4.371]
[1754237556096,4.371,3480.0,3478.8,4.371]
[1754237556435,0.9082,3479.2,3478.8,4.371]
[1754237556643,0.9082,3479.1,3478.8,4.371]
[1754237556851,0.9082,3479.0,3478.8,4.371]
[1754237556998,40.0,3479.8,3478.8,4.371]
[1754237557200,0.9082,3478.9,3478.8,4.371]
[1754237557400,0.9082,3478.9,3478.6,0.002]
[1754237557710,0.9082,3478.8,3478.6,0.002]
[1754237558233,0.9082,3478.7,3478.6,0.002]
[1754237560534,30.0,3479.1,3478.6,0.002]
[1754237560734,30.0,3479.2,3478.6,0.002]
[1754237560938,0.9082,3479.0,3478.6,0.002]
[1754237561432,10.0,3479.7,3478.6,0.002]
[1754237561614,0.9082,3478.9,3478.6,0.002]
[1754237562014,0.4722,3478.8,3478.6,0.002]
[1754237563103,0.436,3478.8,3478.6,0.002]
[1754237563304,0.9082,3478.7,3478.6,0.002]
[1754237565956,30.9082,3478.7,3478.6,0.002]
[1754237566111,33.77644707,3478.7,3478.6,0.002]
[1754237568881,38.14744707,3478.7,3478.6,0.002]
[1754237569454,41.14744707,3478.7,3478.6,0.002]
[1754237578629,36.77644707,3478.7,3478.6,0.002]
[1754237578851,41.14844707,3478.7,3478.6,0.002]
[1754237579721,36.77644707,3478.7,3478.6,0.002]
[1754237579929,41.14744707,3478.7,3478.6,0.002]
[1754237580339,36.34044707,3478.7,3478.6,0.002]
[1754237580655,40.71144707,3478.7,3478.6,0.002]
[1754237580876,41.14614707,3478.7,3478.6,0.002]
[1754237586437,36.77514707,3478.7,3478.6,0.002]
[1754237586765,41.14614707,3478.7,3478.6,0.002]
[1754237589758,48.19214707,3478.7,3478.6,0.002]
[1754237595066,48.74214707,3478.7,3478.6,0.002]
[1754237602060,3.55,3478.6,3478.5,0.002]
[1754237602280,36.44697378,3478.6,3478.5,0.002]
[1754237602484,37.31554707,3478.6,3478.5,0.002]
[1754237604789,37.60374707,3478.6,3478.5,0.002]
[1754237605187,37.31554707,3478.6,3478.5,0.002]
[1754237610606,33.55,3478.4,3478.2,0.002]
[1754237610802,46.25425378,3478.4,3478.2,0.002]
[1754237611096,47.21285378,3478.4,3478.2,0.002]
[1754237617766,63.40652008,3478.4,3478.2,0.002]
[1754237617971,33.0,3478.3,3478.2,0.002]
[1754237618273,30.55,3478.0,3477.9,0.002]
[1754237618472,40.78924707,3478.0,3477.9,0.002]
[1754237618678,41.74784707,3478.0,3477.9,0.002]
[1754237620011,48.78784707,3478.0,3477.9,0.002]
[1754237620176,65.78524651,3478.0,3477.9,0.002]
[1754237620376,65.39176414,3478.0,3477.9,0.002]
[1754237622414,64.98151337,3478.0,3477.9,0.002]
[1754237625200,65.39176414,3478.0,3477.9,0.002]
[1754237627235,0.55,3477.2,3476.1,0.008]
[1754237627436,44.98572671,3477.2,3474.9,0.76312946]
[1754237627625,45.9156,3477.2,3476.0,0.008]
[1754237627824,45.9156,3477.2,3475.2,16.1936663]
[1754237628125,45.9156,3477.2,3474.6,0.144]
[1754237628126,0.55,3477.0,3474.7,16.7436663]
[1754237628329,30.0,3476.7,3476.1,0.008]
[1754237628504,3.0,3476.3,3476.1,0.008]
[1754237628704,34.372,3476.2,3476.1,0.008]
[1754237629640,4.372,3476.2,3476.1,0.008]
[1754237629934,34.372,3476.2,3476.1,0.008]
[1754237630327,37.372,3476.2,3476.1,0.008]
[1754237630703,3.0,3475.9,3474.6,0.865295]
[1754237631028,30.0,3475.6,3475.0,16.1936663]
[1754237631207,40.0,3475.4,3475.0,16.1936663]
[1754237631408,40.0,3475.2,3475.1,0.008]
[1754237631608,4.372,3475.2,3475.1,0.008]
[1754237633399,3.0,3475.9,3475.1,0.008]
[1754237633636,40.0,3475.6,3475.1,0.008]
[1754237633834,4.372,3475.5,3475.1,0.008]
[1754237634000,30.0,3475.4,3475.1,0.008]
[1754237634205,4.372,3475.3,3475.1,0.008]
[1754237634656,30.0,3475.2,3474.3,0.144]
[1754237634819,4.372,3475.1,3474.3,16.1936663]
[1754237635148,30.0,3475.0,3474.4,1.76090893]
[1754237635316,30.0,3475.0,3474.5,0.008]
[1754237635317,4.388,3474.9,3474.5,0.008]
[1754237635523,4.388,3474.9,3474.7,16.1936663]
[1754237635828,4.388,3474.9,3474.8,0.008]
[1754237636476,10.0,3475.8,3474.8,0.008]
[1754237636477,3.0,3475.7,3474.8,0.008]
[1754237636644,0.4699,3476.2,3474.2,0.55]
[1754237636645,3.0,3475.4,3474.2,0.55]
[1754237636810,44.387,3475.3,3474.3,0.008]
[1754237637151,30.0,3475.1,3474.4,16.1936663]
[1754237637353,4.388,3475.0,3474.5,0.008]
[1754237637655,30.0,3474.9,3474.5,0.008]
[1754237637817,4.391,3474.8,3474.5,1.62816663]
[1754237638022,4.391,3474.8,3474.6,0.008]
[1754237639329,4.391,3474.8,3474.7,0.008]
[1754237639915,4.391,3474.8,3474.5,1.62016663]
[1754237639916,4.391,3474.8,3474.5,1.62816663]
[1754237640114,30.0,3474.7,3474.5,1.62016663]
[1754237640312,30.0,3474.7,3474.5,0.008]
[1754237640519,30.0,3474.7,3474.6,0.008]
[1754237641120,30.0,3474.7,3474.4,16.1936663]
[1754237641460,30.0,3474.7,3474.5,0.008]
[1754237642221,30.0,3474.7,3474.6,0.008]
[1754237642648,30.0,3474.7,3474.4,17.81303293]
[1754237643222,30.0,3474.7,3474.4,1.61936663]
[1754237643448,30.0,3474.7,3474.1,0.008]
[1754237643758,4.389,3474.6,3474.1,0.008]
[1754237644559,4.389,3474.6,3474.2,0.008]
[1754237644862,4.389,3474.6,3474.3,0.008]
[1754237645544,4.389,3474.6,3474.1,0.008]
[1754237645745,4.389,3474.6,3474.2,1.77611213]
[1754237645925,4.389,3474.6,3474.3,0.008]
[1754237646128,4.389,3474.6,3474.4,16.1936663]
[1754237646328,4.389,3474.6,3474.5,0.008]
[1754237646528,30.0,3474.7,3474.5,0.008]
[1754237647348,30.0,3474.7,3474.5,1.80577784]
[1754237647662,4.387,3474.8,3474.6,0.008]
[1754237647838,30.0,3474.8,3474.6,0.008]
[1754237649356,30.0,3474.8,3474.5,1.79777784]
[1754237650666,30.0,3474.8,3474.5,1.80577784]
[1754237651230,30.0,3474.8,3474.5,1.79777784]
[1754237652842,30.4529,3474.8,3474.5,1.79777784]
[1754237653050,0.4545,3474.7,3474.5,1.79777784]
[1754237654334,4.8415,3474.9,3474.5,1.79777784]
[1754237654573,0.4545,3474.8,3474.5,1.79777784]
[1754237655674,0.4545,3474.7,3474.5,1.79777784]
[1754237655847,0.4529,3474.7,3474.2,16.1936663]
[1754237656047,0.4545,3474.6,3474.2,16.1936663]
[1754237656371,0.4545,3474.6,3474.1,4.387]
[1754237656663,0.4545,3474.6,3474.1,20.5806663]
[1754237656856,0.4545,3474.5,3474.2,2.22273176]
[1754237657670,0.4545,3474.5,3474.2,3.08821976]
[1754237658569,30.0,3474.8,3474.2,3.08821976]
[1754237658754,0.4545,3474.4,3474.2,0.865488]
[1754237659270,0.4545,3474.3,3474.2,0.865488]
[1754237659460,0.9074,3474.3,3474.2,0.865488]
[1754237659849,0.9074,3474.3,3474.1,16.1936663]
[1754237660049,0.4529,3474.3,3474.1,18.25133293]
[1754237660249,0.4545,3474.2,3474.1,19.11688293]
[1754237660468,4.387,3474.9,3474.1,19.11688293]
[1754237660765,0.9074,3474.2,3474.1,19.11688293]
[1754237660943,0.4545,3474.2,3474.1,19.11688293]
[1754237661141,0.4529,3474.5,3474.1,19.11688293]
[1754237661347,0.9074,3474.4,3474.2,4.381]
[1754237661573,0.4529,3474.4,3474.2,4.381]
[1754237661746,0.4545,3474.3,3474.2,4.381]
[1754237662668,0.9074,3474.3,3474.2,4.381]
[1754237663641,0.9074,3474.3,3474.1,0.86555]
[1754237663846,30.0,3475.3,3474.2,3.5787836]
[1754237664174,4.381,3475.5,3475.2,16.1936663]
[1754237664373,30.0,3475.8,3475.2,16.1936663]
[1754237664573,34.384,3475.8,3475.2,18.25913293]
[1754237664770,4.384,3475.8,3475.2,18.25913293]
[1754237665072,4.384,3475.9,3475.7,16.1936663]
[1754237665367,0.4545,3475.8,3475.3,20.5776663]
[1754237665540,10.4545,3476.1,3475.7,16.1936663]
[1754237665742,30.0,3476.0,3475.7,16.1936663]
[1754237665942,0.4545,3476.0,3475.7,16.1936663]
[1754237666141,0.4545,3475.9,3475.7,16.1936663]
[1754237666341,0.4545,3475.8,3475.7,16.1936663]
[1754237666550,0.4545,3476.0,3475.7,16.1936663]
[1754237666875,0.4545,3476.5,3475.8,4.41177035]
[1754237667062,4.386,3476.8,3476.3,16.1936663]
[1754237667372,5.2934,3476.8,3476.3,16.1936663]
[1754237667560,4.8399,3477.0,3476.3,18.25113293]
[1754237667740,0.4545,3476.8,3476.4,0.864993]
[1754237667938,0.001,3477.1,3476.7,16.1936663]
[1754237668139,30.9074,3477.0,3476.5,4.387]
[1754237668457,0.9074,3476.9,3476.5,4.387]
[1754237668655,0.001,3477.1,3476.5,4.387]
[1754237668871,0.9379,3476.8,3476.5,4.387]
[1754237669042,0.9379,3476.7,3476.5,4.387]
[1754237669243,30.0,3477.0,3476.5,4.387]
[1754237669474,0.9379,3476.6,3476.4,0.864993]
[1754237669851,0.4791,3476.5,3476.4,0.864993]
[1754237670052,0.9379,3476.5,3476.4,0.864993]
[1754237670259,30.0,3476.7,3476.4,0.864993]
[1754237670454,30.0,3477.0,3476.4,0.864993]
[1754237670658,0.9379,3476.7,3476.4,0.864993]
[1754237670853,0.9379,3476.6,3476.4,0.864993]
[1754237671056,0.001,3477.1,3476.4,0.864993]
[1754237671260,0.4588,3476.5,3476.4,0.864993]
[1754237671478,0.9379,3476.5,3476.4,0.864993]
[1754237672374,0.4791,3476.5,3476.4,0.864993]
[1754237672673,10.001,3477.1,3476.4,0.864993]
[1754237672674,4.386,3476.9,3476.4,0.864993]
[1754237673141,0.4791,3476.8,3476.4,0.864993]
[1754237673349,4.386,3476.9,3476.5,2.14466593]
[1754237673563,4.8651,3476.9,3476.5,2.14466593]
[1754237674087,0.4791,3476.8,3476.5,2.14466593]
[1754237674265,0.9379,3476.8,3476.6,0.864906]
[1754237674467,0.4791,3476.7,3476.6,0.864906]
[1754237674779,0.9379,3476.7,3476.2,4.386]
[1754237675079,4.386,3476.9,3475.8,0.144]
[1754237675080,0.9379,3476.6,3475.8,0.144]
[1754237675256,0.9379,3476.6,3476.4,0.864993]
[1754237675464,0.4791,3476.5,3476.4,0.864993]
[1754237677705,0.4791,3476.7,3476.4,0.864993]
[1754237677907,0.4588,3476.6,3476.4,0.864993]
[1754237678103,4.385,3477.0,3476.4,0.864993]
[1754237678290,0.9379,3476.5,3476.4,0.864993]
[1754237679102,4.385,3477.0,3476.4,17.0586593]
[1754237679308,30.0,3476.9,3476.4,17.0586593]
[1754237679682,40.0,3476.7,3476.4,17.0586593]
[1754237679876,30.0,3476.7,3476.4,17.0586593]
[1754237680083,0.4791,3476.6,3476.4,17.0586593]
[1754237681379,30.0,3476.9,3476.4,17.0586593]
[1754237681579,0.4791,3476.5,3476.4,17.0586593]
[1754237682279,0.4791,3476.5,3476.4,19.20282523]
[1754237683411,0.9379,3476.5,3476.4,19.20282523]
[1754237683609,0.9379,3476.5,3476.4,3.00915893]
[1754237683915,0.9379,3476.5,3476.4,0.864993]
[1754237684093,0.9379,3476.5,3476.0,4.381]
[1754237684418,0.9379,3476.4,3475.8,4.381]
[1754237684581,0.9379,3476.3,3475.7,0.865123]
[1754237684780,30.0,3476.1,3475.4,4.383]
[1754237685023,40.0,3475.9,3475.4,0.86524]
[1754237685229,30.0,3475.9,3475.4,0.86524]
[1754237685435,30.0,3475.7,3475.4,0.86524]
[1754237685621,0.9379,3475.6,3475.4,0.86524]
[1754237685936,0.9379,3475.5,3475.4,0.86524]
[1754237686105,0.4791,3475.5,3475.4,0.86524]
[1754237686999,0.4791,3475.5,3475.1,4.383]
[1754237687202,0.4791,3475.5,3475.2,16.9319663]
[1754237687427,0.4588,3475.7,3475.3,0.02877449]
[1754237687726,0.4791,3475.6,3475.3,0.02877449]
[1754237688031,0.4791,3475.6,3475.2,17.7972063]
[1754237689608,0.4588,3475.6,3475.2,17.7972063]
[1754237689809,0.4791,3475.5,3475.2,17.7972063]
[1754237690010,0.4791,3475.5,3475.3,2.21802063]
[1754237690410,4.382,3476.3,3475.5,0.55]
[1754237690729,4.8611,3476.3,3476.0,16.1936663]
[1754237690898,0.4791,3476.3,3476.0,16.1936663]
[1754237691325,0.4791,3476.2,3476.0,16.1936663]
[1754237692438,3.0,3476.8,3476.1,0.02876787]
[1754237692439,30.0,3476.7,3476.1,0.02876787]
[1754237692591,30.0,3476.7,3476.0,17.59761825]
[1754237692793,30.0,3476.7,3476.1,4.382]
[1754237693013,4.8611,3476.8,3476.1,4.382]
[1754237693014,0.4791,3476.8,3476.4,16.1936663]
[1754237693711,0.4791,3476.7,3476.4,16.1936663]
[1754237694496,4.383,3476.9,3476.3,4.383]
[1754237694497,0.4791,3476.6,3476.3,4.383]
[1754237694696,0.9379,3476.6,3476.3,4.383]
[1754237694939,0.9379,3476.5,3476.3,4.383]
[1754237695231,0.9379,3476.4,3476.1,4.383]
[1754237695525,0.9379,3476.3,3476.1,0.865043]
[1754237695726,4.8621,3476.7,3476.1,1.3898473]